Cogmind - Beta 14 @@@ ROGUE MODE // 2024.11.29 @ 02:12:01 Player: akira Result: Destroyed by P-60 Hacker with Shock Rifle Performance ------------- Evolutions (3) 1500 Regions Visited (11) 2200 Robots Destroyed (87) 435 Value Destroyed (7174) 7174 Prototype IDs (25) 500 Alien Tech Used (0) 0 Bonus (4876) 4876 TOTAL SCORE: 16685 Bonus ------- High Alert Combat Kills 864 Follower Combat Kills 1340 Entered Garrisons 600 Used RIF Installer 2000 Aligned with FarCom 300 Friendly Fire -228 Cogmind --------- Core Integrity 0/700 Matter 28/300 Energy 54/100 System Corruption 13% Temperature Cool (0) Movement Core (50) Location -7/Factory Parts ------- > --- POWER (1) -------- (None) > --- PROPULSION (4) --- (None) > --- UTILITY (5) ------ Relay Coupler [NC] (15) > --- WEAPON (3) ------- Improved Datajack > --- INVENTORY (5) ---- Relay Coupler [NC] (27) Relay Coupler [Specialist] (21) Relay Coupler [Behemoth] (9) Relay Coupler [Behemoth] (11) Peak State ------------ > --- POWER ------------ Neutrino Core > --- PROPULSION ------- Light Treads Advanced Treads Medium Treads Medium Treads > --- UTILITY ---------- Large Storage Unit Hardened Light Armor Plating Layered Heavy Armor Plating Relay Coupler [Sentry] > --- WEAPON ----------- AWS/Gauss Improved Remote Datajack > --- INVENTORY -------- Antigrav System Relay Coupler [NC] Relay Coupler [Swarmer] Relay Coupler [Swarmer] Relay Coupler [Duelist] Relay Coupler [Sentry] Relay Coupler [Specialist] Relay Coupler [Behemoth] Relay Coupler [Behemoth] Mini Drone Bay Long-range Proton Cannon Long-range Proton Cannon Improved Datajack Remote Datajack Katana [Rating: 65] Favorites ----------- Power Light Nuclear Core Engine Improved Deuterium Engine Power Core Light Nuclear Core Propulsion Light Treads Treads Light Treads Leg Aluminum Leg Wheel Compact Wheel Hover Unit Gravmag System Utility Large Storage Unit Device Improved Terrain Scanner Storage Large Storage Unit Processor Advanced Targeting Computer Hackware Relay Coupler [NC] Protection Hardened Light Armor Plating Weapon AWS/Gauss Energy Gun Heavy EM Shotgun Energy Cannon Long-range Proton Cannon Ballistic Gun AWS/Gauss Launcher Grenade Launcher Special Weapon Improved Remote Datajack Slashing Weapon Katana Special Melee Weapon Improved Datajack Build | -11 -10 -10 -10 -9 -8 -8 -8 -8 -7 -7 -7 ------- Run | Yrd Mat Min Exi Min Mat Gar Mat Gar Fac Gar Fac Slots Evolved 6 | . . . . . 4 . . . 2 . . Power . | . . . . . . . . . . . . Propulsion 2 | . . . . . 1 . . . 1 . . Utility 3 | . . . . . 2 . . . 1 . . Weapon 1 | . . . . . 1 . . . . . . Parts Attached 205 | 8 4 7 . 1 19 46 17 28 10 51 14 Power 8 | 1 1 1 . . 1 2 . 1 . 1 . Engine 4 | 1 1 1 . . . . . . . 1 . Core 4 | . . . . . 1 2 . 1 . . . Reactor . | . . . . . . . . . . . . Propulsion 37 | 3 . 1 . . 4 13 4 3 . 5 4 Treads 15 | 2 . . . . 1 . . 3 . 5 4 Leg 13 | . . . . . 2 8 3 . . . . Wheel 7 | 1 . 1 . . 1 3 1 . . . . Hover 2 | . . . . . . 2 . . . . . Flight . | . . . . . . . . . . . . Utility 61 | 2 1 2 . 1 4 12 6 9 5 16 3 Device 4 | 1 . 1 . 1 . . . . . . 1 Storage 2 | 1 1 . . . . . . . . . . Processor 1 | . . . . . 1 . . . . . . Hackware 31 | . . . . . . 5 5 4 5 10 2 Protection 23 | . . 1 . . 3 7 1 5 . 6 . Artifact . | . . . . . . . . . . . . Weapon 99 | 2 2 3 . . 10 19 7 15 5 29 7 Energy Gun 1 | . . . . . 1 . . . . . . Energy Cannon 4 | . . . . . . . 1 . . 1 2 Ballistic Gun 33 | 2 1 2 . . 9 10 2 4 . . 3 Ballistic Cannon . | . . . . . . . . . . . . Launcher 2 | . . 1 . . . 1 . . . . . Special Weapon 12 | . . . . . . 1 2 . . 9 . Impact Weapon . | . . . . . . . . . . . . Slashing Weapon 30 | . . . . . . 7 1 6 2 13 1 Piercing Weapon . | . . . . . . . . . . . . Special Melee Weapon 17 | . 1 . . . . . 1 5 3 6 1 Unidentified Prototypes 2 | . . . . . 1 . 1 . . . . Parts Lost 33 | . . 2 . . 2 9 2 . . 2 16 Power 3 | . . 1 . . . 1 . . . . 1 Propulsion 12 | . . 1 . . 1 3 . . . . 7 Utility 9 | . . . . . 1 2 1 . . 2 3 Weapon 9 | . . . . . . 3 1 . . . 5 Highest Loss Streak 13 | . . 1 . . 1 3 1 . . 1 13 To Critical Strikes 1 | . . . . . . 1 . . . . . Average Slot Usage (%) 89 | . 100 91 100 100 99 94 93 86 73 80 78 Engine 2 | . 14 7 14 14 1 . . . . 4 5 Core 5 | . . . . . 7 8 9 9 7 2 . Treads 13 | . 28 19 14 14 5 2 . 9 23 27 26 Leg 8 | . . . . . 11 13 19 17 . . . Wheel 4 | . . 8 14 14 9 9 7 . . . . Device 2 | . 14 9 . 4 9 . . . . . . Storage 8 | . 14 14 14 14 9 9 9 9 7 7 7 Processor 2 | . . . . . 5 8 . . . . . Hackware 7 | . . . . . . 4 9 11 4 12 16 Protection 10 | . . 4 14 9 11 10 15 11 15 9 4 Ballistic Gun 14 | . 28 18 28 28 26 18 9 9 7 6 1 Special Weapon 2 | . . . . . . 3 8 . . 2 5 Slashing Weapon 3 | . . . . . . 4 6 6 3 2 6 Peak Build Rating 65 | 7 8 10 11 14 33 38 49 55 53 65 50 Average Rating 38 | 5 7 9 10 11 28 31 35 46 50 52 44 On Entrance 25 | . 7 8 10 11 14 33 33 44 50 50 50 Naked Turns . | . . . . . . . . . . . . Heaviest Build 73 | 11 28 32 32 32 44 53 45 71 71 73 58 Greatest Support 98 | 40 40 40 16 16 16 42 51 62 62 98 98 Greatest Overweight (x) 3 | 1 . 1 1 1 2 3 2 1 1 1 1 Average Overweight (x) 1 | . . . 1 1 1 2 1 . 1 . . Largest Inventory Capacity 15 | 8 15 15 15 15 15 15 15 15 15 15 15 Average Capacity 14 | 7 10 15 15 15 15 15 15 15 15 15 14 Most Carried 15 | 8 14 15 15 15 15 15 15 15 15 15 14 Average Carried 13 | 6 9 13 14 14 14 14 14 14 12 13 12 Final Capacity 15 | 8 15 15 15 15 15 15 15 15 15 15 5 Final Carried 15 | 7 14 13 15 15 15 15 12 15 10 14 4 Class Distribution -------------------- 48% | Bothacker-Mutant 10% | Skirmisher 9% | Scavenger-Skirmisher 8% | Mutant 5% | Bothacker-Skirmisher 3% | Botlord-Skirmisher 3% | Bothacker-Tank 3% | Botlord-Mutant Dominant Class ---------------- Mutant | -10/Materials Mutant | -10/Mines Mutant | -10/Exiles Mutant | -9/Mines Skirmisher | -8/Materials Bothacker-Mutant | -8/Garrison Bothacker-Mutant | -8/Materials Bothacker-Mutant | -8/Garrison Bothacker-Mutant | -7/Factory Bothacker-Mutant | -7/Garrison Botlord-Mutant | -7/Factory Resources | -11 -10 -10 -10 -9 -8 -8 -8 -8 -7 -7 -7 ----------- Run | Yrd Mat Min Exi Min Mat Gar Mat Gar Fac Gar Fac Matter Collected 4584 | 296 40 120 . 28 846 1479 265 484 100 858 68 Remotely . | . . . . . . . . . . . . Salvage Created 3266 | 87 . 49 . 28 737 1092 349 437 40 261 186 Parts 202 | 6 . . . 4 53 63 10 29 3 28 6 Haulers Intercepted . | . . . . . . . . . . . . Recyclers Shooed 2 | . . . . . 1 . 1 . . . . Parts Field Recycled . | . . . . . . . . . . . . Retrieved Matter . | . . . . . . . . . . . . Parts Self-Destructed . | . . . . . . . . . . . . Prevented . | . . . . . . . . . . . . Kills | -11 -10 -10 -10 -9 -8 -8 -8 -8 -7 -7 -7 ------- Run | Yrd Mat Min Exi Min Mat Gar Mat Gar Fac Gar Fac Combat Hostiles Destroyed 97 | . . 19 . . 19 29 7 9 1 7 6 Melee 9 | . . . . . . 1 3 1 . 4 . Guns 64 | . . . . . 19 25 4 8 1 3 4 AOE 24 | . . 19 . . . 3 . . . . 2 Classes Destroyed 13 | 2 . 1 . . 5 3 1 . . . 1 Worker 3 | . . . . . 3 . . . . . . Tunneler 2 | 1 . . . 1 . . . . . . . Recycler 3 | 1 . . . . 2 . . . . . . Swarmer 20 | . . . . . 11 7 . . . . 2 Cutter 8 | . . . . . . 3 . 2 . 3 . Grunt 27 | . . . . . 2 12 6 5 . . 2 Brawler 2 | . . . . . . 1 . . . 1 . Duelist 1 | . . . . . . . 1 . . . . Sentry 6 | . . . . . 3 . . 2 . . 1 Demolisher 1 | . . . . . . . . . . . 1 Hunter 5 | . . . . . 3 1 . 1 . . . Programmer 9 | . . . . . . 5 . . 1 3 . Assembled 19 | . . 19 . . . . . . . . . Best Kill Streak 12 | 2 . 12 . 1 8 7 4 5 1 3 6 Combat Bots Only 12 | . . 12 . . 8 7 4 5 1 3 6 Max Kills in Single Turn 3 | 1 . 3 . 1 2 3 1 1 1 1 2 Gunslinging 1 | . . . . . 1 . . . . . . Exploded 3 | . . 3 . . . 3 . . . . 2 Melee 1 | . . . . . . 1 1 1 . 1 . Uniques/NPCs Destroyed . | . . . . . . . . . . . . Combat | -11 -10 -10 -10 -9 -8 -8 -8 -8 -7 -7 -7 -------- Run | Yrd Mat Min Exi Min Mat Gar Mat Gar Fac Gar Fac Hostile Shots Fired 818 | . . 45 . . 119 133 28 56 9 172 256 Missed 233 | . . 13 . . 38 32 8 15 2 44 81 Damage Taken 8255 | . . 583 . . 879 1614 295 541 144 1467 2732 Core 1277 | . . 106 . . 130 113 64 160 . 137 567 Absorbed by Shields 124 | . . . . . . . . 71 4 49 . Redirected to Shielding 134 | . . . . . 47 39 22 26 . . . Regen/Repaired (Parts) 372 | . . . . . 6 . . . . 219 147 Core Remaining (%) 57 | 100 . . . 57 . . . 15 . . . Volleys Fired 231 | 8 1 17 . 5 49 84 21 5 . 19 22 Largest 3 | 2 2 2 . 2 3 3 2 1 . 1 3 Hottest 90 | 40 40 50 . 46 81 81 85 25 . 81 90 Shots Fired 544 | 16 2 20 . 10 144 211 30 33 4 26 48 Gun 480 | 16 2 3 . 10 144 202 17 33 4 7 42 Cannon 4 | . . . . . . . 2 . . 2 . Launcher 18 | . . 17 . . . 1 . . . . . Special 42 | . . . . . . 8 11 . . 17 6 Kinetic 480 | 16 2 3 . 10 144 202 17 33 4 7 42 Thermal 2 | . . . . . . . 2 . . . . Explosive 18 | . . 17 . . . 1 . . . . . Electromagnetic 2 | . . . . . . . . . . 2 . Robot Hit Streak 15 | 2 . 4 . 2 11 15 11 9 7 8 8 Robot Miss Streak 7 | 2 2 3 . 4 7 2 1 2 . 2 5 Penetration Max 1 | . . . . . 1 1 . . . . . Secondary Targets 13 | . . . . . 7 3 . . . . 3 Max Gunslinging Chain 2 | . . . . . 2 1 . . . . 1 Autonomous 45 | . . . . . . . 6 28 4 7 . Shots Hit Robots 408 | 9 1 11 . 3 85 140 33 45 18 34 29 Core Hits 178 | 3 . 39 . 1 40 51 10 13 2 9 10 Critical Kills 3 | . . . . . 1 1 1 . . . . Critical Parts Destroyed 3 | . . . . . 1 2 . . . . . Critical Strikes 8 | . . . . . 2 3 1 . . 1 1 Destroy 6 | . . . . . 2 3 1 . . . . Sever 2 | . . . . . . . . . . 1 1 Melee Attacks 150 | . 1 . . . . 27 17 43 17 42 3 Impact . | . . . . . . . . . . . . Slashing 107 | . . . . . . 27 16 29 . 32 3 Piercing . | . . . . . . . . . . . . Sneak Attacks 8 | . 1 . . . . . 1 . 6 . . Combat Hostiles 1 | . . . . . . . 1 . . . . Follow-up Attacks . | . . . . . . . . . . . . Damage Inflicted 8538 | 73 . 1378 . 65 1280 2783 620 998 116 442 783 Guns 5850 | 73 . 16 . 65 1280 2633 289 706 116 150 522 Cannons 52 | . . . . . . . 22 . . 30 . Explosions 1653 | . . 1362 . . . 115 . . . . 176 Melee 983 | . . . . . . 35 309 292 . 262 85 Ramming . | . . . . . . . . . . . . Kinetic 5850 | 73 . 16 . 65 1280 2633 289 706 116 150 522 Thermal 198 | . . . . . . . 22 . . . 176 Explosive 1477 | . . 1362 . . . 115 . . . . . Electromagnetic 30 | . . . . . . . . . . 30 . Impact . | . . . . . . . . . . . . Slashing 983 | . . . . . . 35 309 292 . 262 85 Piercing . | . . . . . . . . . . . . Highest Corruption 13 | . . . . . . 10 10 10 . 9 13 Average Corruption 9 | . . . . . . 9 10 10 . 8 9 Corruption Purged . | . . . . . . . . . . . . Corruption Blocked . | . . . . . . . . . . . . Effects 367 | . . . . . . 84 45 78 . 137 23 Message Errors 91 | . . . . . . 26 9 19 . 32 5 Matter Fused 82 | . . . . . . 19 10 11 . 37 5 Heat Flow Errors 58 | . . . . . . 13 7 15 . 22 1 Energy Discharges 43 | . . . . . . 12 6 9 . 11 5 Parts Rejected 3 | . . . . . . 1 1 . . . 1 Parts Fused 7 | . . . . . . . . 3 . 4 . Data Loss (minor) 43 | . . . . . . 4 6 13 . 17 3 Data Loss (major) 18 | . . . . . . 3 1 5 . 8 1 Misfires 5 | . . . . . . 4 1 . . . . Alerts 13 | . . . . . . 1 4 2 . 6 . Misdirections 1 | . . . . . . . . 1 . . . Weapon Failures 3 | . . . . . . 1 . . . . 2 Overload Shots . | . . . . . . . . . . . . Overflow Damage 224 | . . 66 . . . . . . . 19 139 Projectiles . | . . . . . . . . . . . . Explosions 205 | . . 66 . . . . . . . . 139 Melee 19 | . . . . . . . . . . 19 . Knockbacks . | . . . . . . . . . . . . Impact . | . . . . . . . . . . . . Kinetic . | . . . . . . . . . . . . Secondary . | . . . . . . . . . . . . Self-Inflicted Damage 231 | . . 128 . . . 41 . . . . 62 Shots 8 | . . 6 . . . 1 . . . . 1 Rammed . | . . . . . . . . . . . . Targets Rammed . | . . . . . . . . . . . . Kicked . | . . . . . . . . . . . . Crushed . | . . . . . . . . . . . . Highest Temperature 284 | . . 50 . . 141 274 240 284 24 277 240 Average Temperature 81 | . . 22 . . 34 77 82 103 12 98 67 Received Heat Transfer 2038 | . . 40 . . 36 369 135 184 106 193 975 Effects 6 | . . . . . . 3 . 2 . 1 . Energy Bleed 5 | . . . . . . 2 . 2 . 1 . Interference 1 | . . . . . . 1 . . . . . Siege Activations . | . . . . . . . . . . . . Robots Corrupted . | . . . . . . . . . . . . Combat Hostiles . | . . . . . . . . . . . . Parts Fried . | . . . . . . . . . . . . Impact Corruptions . | . . . . . . . . . . . . Robots Melted . | . . . . . . . . . . . . Combat Hostiles . | . . . . . . . . . . . . Parts Melted 2 | . . . . . . . 2 . . . . Heat Transferred 187 | . . . . . . . 37 . . . 150 Parts Sabotaged . | . . . . . . . . . . . . Parts Stolen . | . . . . . . . . . . . . Parts Stripped . | . . . . . . . . . . . . Power Chain Reactions . | . . . . . . . . . . . . Alert | -11 -10 -10 -10 -9 -8 -8 -8 -8 -7 -7 -7 ------- Run | Yrd Mat Min Exi Min Mat Gar Mat Gar Fac Gar Fac Peak Influence 3347 | 10 29 63 . 5 225 2093 1155 1444 820 3347 1815 Initial 1757 | . 6 5 . . 1 27 1019 403 758 221 1757 Average 909 | 4 22 41 . 1 73 997 902 856 641 1457 1700 Maximum Alert Level 5 | . . . . . 1 5 4 4 3 5 5 Low Security (%) 22 | 100 100 100 . 100 91 9 . . . . . Level 1 6 | . . . . . 8 12 . . 27 7 . Level 2 14 | . . . . . . 14 8 21 1 28 . Level 3 26 | . . . . . . 22 81 65 71 14 . Level 4 9 | . . . . . . 18 9 12 . 9 16 Level 5 19 | . . . . . . 22 . . . 40 83 High Security . | . . . . . . . . . . . . Max Security . | . . . . . . . . . . . . Squads Dispatched 10 | . . . . . . . 3 . 2 . 5 Investigation . | . . . . . . . . . . . . Extermination 3 | . . . . . . . . . 1 . 2 Reinforcement 3 | . . . . . . . 1 . 1 . 1 Assault 3 | . . . . . . . 1 . . . 2 Garrison 1 | . . . . . . . 1 . . . . Intercept . | . . . . . . . . . . . . Searches Triggered . | . . . . . . . . . . . . Construction Impeded . | . . . . . . . . . . . . Haulers Reinforced 1 | . . . . . . . . . . . 1 Active Scanning Responses . | . . . . . . . . . . . . Cargo Convoy Interrupts . | . . . . . . . . . . . . Stealth | -11 -10 -10 -10 -9 -8 -8 -8 -8 -7 -7 -7 --------- Run | Yrd Mat Min Exi Min Mat Gar Mat Gar Fac Gar Fac Distress Signals 4 | . . . . . 3 . . . . . 1 Communications Jammed 31 | . . . . . . . . . . . 31 Distress Signals 31 | . . . . . . . . . . . 31 Times Spotted 240 | . 2 22 . . 38 33 27 26 10 47 35 Peak Tracking Total 15 | . 1 10 . . 8 6 7 5 3 8 15 Tactical Retreats 8 | . . . . . . 2 2 . . . 4 Traps | -11 -10 -10 -10 -9 -8 -8 -8 -8 -7 -7 -7 ------- Run | Yrd Mat Min Exi Min Mat Gar Mat Gar Fac Gar Fac Traps Triggered 15 | . . . . . . 8 . 6 . 1 . Indirectly . | . . . . . . . . . . . . Trap Hack Attempts 145 | . . . . . . . . 52 . 93 . Triggered 2 | . . . . . . . . 1 . 1 . Disarmed 2 | . . . . . . . . . . 2 . Reprogrammed 14 | . . . . . . . . 3 . 11 . Reused . | . . . . . . . . . . . . Traps Extracted . | . . . . . . . . . . . . Installed . | . . . . . . . . . . . . Triggered . | . . . . . . . . . . . . Machines | -11 -10 -10 -10 -9 -8 -8 -8 -8 -7 -7 -7 ---------- Run | Yrd Mat Min Exi Min Mat Gar Mat Gar Fac Gar Fac Machines Disabled 30 | . . . . . 3 9 . 8 . 9 1 Max in Single Turn 2 | . . . . . 1 2 . 1 . 1 1 Garrison Relay 22 | . . . . . . 8 . 7 . 7 . Machines Repaired . | . . . . . . . . . . . . Machines Dismantled . | . . . . . . . . . . . . Machines Sabotaged . | . . . . . . . . . . . . Overloaded Fab Kills . | . . . . . . . . . . . . Hacking | -11 -10 -10 -10 -9 -8 -8 -8 -8 -7 -7 -7 --------- Run | Yrd Mat Min Exi Min Mat Gar Mat Gar Fac Gar Fac Machines Accessed 25 | . 6 . 1 . 9 2 4 1 1 1 . Terminals 20 | . 6 . . . 7 2 3 1 . 1 . Fabricators . | . . . . . . . . . . . . Repair Stations 1 | . . . . . 1 . . . . . . Recycling Units . | . . . . . . . . . . . . Scanalyzers . | . . . . . . . . . . . . Garrison Access 3 | . . . . . 1 . 1 . 1 . . Total Hacks 46 | . 7 . 1 . 21 3 11 1 1 1 . Successful 29 | . 6 . 1 . 13 1 5 1 1 1 . Failed 17 | . 1 . . . 8 2 6 . . . . Catastrophic 4 | . . . . . 2 1 1 . . . . Database Lockouts . | . . . . . . . . . . . . Manual 31 | . 6 . 1 . 17 . 7 . . . . Terminals 40 | . 7 . . . 18 3 10 1 . 1 . Fabricators . | . . . . . . . . . . . . Repair Stations 2 | . . . . . 2 . . . . . . Recycling Units . | . . . . . . . . . . . . Scanalyzers . | . . . . . . . . . . . . Garrison Access 3 | . . . . . 1 . 1 . 1 . . Terminal Hacks 6 | . . . 1 . 2 1 . 1 . 1 . Open Door 1 | . . . . . . . . . . 1 . Emergency Access Points 2 | . . . . . . 1 . 1 . . . Garrison Index 1 | . . . . . 1 . . . . . . Alert Level 1 | . . . . . 1 . . . . . . Derelict Proto ID Bank 1 | . . . 1 . . . . . . . . Fabricator Hacks . | . . . . . . . . . . . . Repair Station Hacks 2 | . . . . . 2 . . . . . . Scan Component 1 | . . . . . 1 . . . . . . Repair 1 | . . . . . 1 . . . . . . Recycling Unit Hacks . | . . . . . . . . . . . . Scanalyzer . | . . . . . . . . . . . . Garrison Access Hacks 3 | . . . . . 1 . 1 . 1 . . Unlock Access 3 | . . . . . 1 . 1 . 1 . . Unauthorized Hacks 18 | . 6 . . . 8 . 4 . . . . Terminals 18 | . 6 . . . 8 . 4 . . . . Assimilate 3 | . . . . . 2 . 1 . . . . Botnet 15 | . 6 . . . 6 . 3 . . . . Fabricators . | . . . . . . . . . . . . Repair Stations . | . . . . . . . . . . . . Recycling Units . | . . . . . . . . . . . . Scanalyzers . | . . . . . . . . . . . . Garrison Access . | . . . . . . . . . . . . Data Cores Recovered . | . . . . . . . . . . . . Used . | . . . . . . . . . . . . Hacking Detections 14 | . 2 . . . 5 2 3 1 1 . . Full Trace Events 1 | . . . . . . . 1 . . . . Feedback Events . | . . . . . . . . . . . . Feedback Blocked . | . . . . . . . . . . . . Robot Schematics Acquired . | . . . . . . . . . . . . Robots Built . | . . . . . . . . . . . . Authchips . | . . . . . . . . . . . . Time . | . . . . . . . . . . . . Total Robot Build Rating . | . . . . . . . . . . . . Part Schematics Acquired . | . . . . . . . . . . . . Parts Built . | . . . . . . . . . . . . Authchips . | . . . . . . . . . . . . Time . | . . . . . . . . . . . . Total Part Build Rating . | . . . . . . . . . . . . Parts Repaired 1 | . . . . . 1 . . . . . . Time 38 | . . . . . 38 . . . . . . Parts Recycled . | . . . . . . . . . . . . Recycled Matter . | . . . . . . . . . . . . Retrieved Matter . | . . . . . . . . . . . . Retrieved Components . | . . . . . . . . . . . . Parts Scanalyzed . | . . . . . . . . . . . . Part Schematics Acquired . | . . . . . . . . . . . . Parts Damaged . | . . . . . . . . . . . . Bothacking | -11 -10 -10 -10 -9 -8 -8 -8 -8 -7 -7 -7 ------------ Run | Yrd Mat Min Exi Min Mat Gar Mat Gar Fac Gar Fac Used RIF Installer 4 | . . . . . . 1 . 1 . 2 . Hotswap 1 | . . . . . . . . . . 1 . Signal Jammer 1 | . . . . . . . . . . 1 . Robot Detection 1 | . . . . . . . . 1 . . . Robots Hacked 55 | . 1 . . . . 5 6 10 10 19 4 Non-combat 7 | . 1 . . . . . 2 . 3 1 . Combat 48 | . . . . . . 5 4 10 7 18 4 Robot Hacks Applied 60 | . 1 . . . . 5 8 10 13 19 4 parse_system 1 | . . . . . . . . . 1 . . no_distress 2 | . 1 . . . . . . . 1 . . purge_threat 4 | . . . . . . . 2 . 2 . . find_shortcuts 1 | . . . . . . . . . 1 . . disrupt_area 1 | . . . . . . . . 1 . . . overload_power 1 | . . . . . . . . . . . 1 overwrite_iff 4 | . . . . . . . . 1 1 1 1 streamctrl_high 4 | . . . . . . . . 2 . 2 . formatsys_low 3 | . . . . . . . 1 . 2 . . formatsys_high 39 | . . . . . . 5 5 6 5 16 2 Relay Couplers Released 86 | . . . . . . 34 . 25 . 27 . Machine Destruction 86 | . . . . . . 34 . 25 . 27 . Attached 31 | . . . . . . 5 5 4 5 10 2 Fabnet Peak Effective % . | . . . . . . . . . . . . Robots Rewired . | . . . . . . . . . . . . Allies Hacked . | . . . . . . . . . . . . Hacks Repelled . | . . . . . . . . . . . . Allies | -11 -10 -10 -10 -9 -8 -8 -8 -8 -7 -7 -7 -------- Run | Yrd Mat Min Exi Min Mat Gar Mat Gar Fac Gar Fac Total Allies 54 | . . . . . 2 5 6 9 8 21 3 Largest Group 9 | . . . . . 2 2 4 3 4 9 9 Highest-Rated Group 252 | . . . . . 20 45 50 59 88 252 252 Highest-Rated Ally 40 | . . . . . 10 29 27 27 29 40 40 Total Orders 76 | . . . . . 4 . 3 11 4 45 9 STAY 29 | . . . . . 2 . 2 1 2 19 3 FOLLOW 17 | . . . . . 2 . 1 2 2 8 2 GUARD 3 | . . . . . . . . 1 . 1 1 AID 27 | . . . . . . . . 7 . 17 3 Ally Attacks 290 | . . . . . . 7 67 40 17 132 27 Total Damage 5473 | . . . . . . 112 1029 730 224 2610 768 Kills 48 | . . . . . . 1 8 6 3 27 3 Allies Corrupted . | . . . . . . . . . . . . Allies Melted . | . . . . . . . . . . . . Intel | -11 -10 -10 -10 -9 -8 -8 -8 -8 -7 -7 -7 ------- Run | Yrd Mat Min Exi Min Mat Gar Mat Gar Fac Gar Fac Robot Analysis Total . | . . . . . . . . . . . . Derelict Logs Recovered 1 | . . 1 . . . . . . . . . Drone Launches 3 | . . . . . . . . . . . 3 Drone Recoveries . | . . . . . . . . . . . . Exploration | -11 -10 -10 -10 -9 -8 -8 -8 -8 -7 -7 -7 ------------- Run | Yrd Mat Min Exi Min Mat Gar Mat Gar Fac Gar Fac Turns Passed 16955 | 111 519 242 374 276 2537 3292 1239 2359 561 4789 656 Spaces Moved 8173 | 66 284 144 325 206 1565 1808 580 990 174 1810 221 Core 3 | 2 . . . . . . . . . . 1 Treads 2902 | 21 284 39 . . . . . 354 174 1810 220 Legs 791 | . . . . . . 59 96 636 . . . Wheels 4477 | 43 . 105 325 206 1565 1749 484 . . . . Hover . | . . . . . . . . . . . . Flight . | . . . . . . . . . . . . Fastest Speed 50 | 50 160 115 115 115 115 108 130 130 235 155 50 Average Speed 148 | 105 160 127 115 115 129 133 130 168 235 178 156 Slowest Speed 270 | 160 160 240 115 115 130 260 270 235 235 240 225 Overloaded Moves . | . . . . . . . . . . . . Propulsion Burnouts . | . . . . . . . . . . . . Robots Hopped . | . . . . . . . . . . . . Cave-ins Triggered . | . . . . . . . . . . . . Exploration Rate (%) 47 | 4 49 35 62 27 82 89 41 87 4 88 7 Regions Visited 11 Branch Regions 3 Pre-discovered Areas 1 | . . 1 . . . . . . . . . Known Exits Taken 3 | . . . . . 1 . 1 . 1 . . Unknown Exits Taken 5 | 1 1 1 1 1 . . . . . . . Scrap Searched . | . . . . . . . . . . . . Spaces Dug 7 | . . . . . . . 6 . . . 1 Terrain Destroyed 126 | . . 87 . . . 12 9 3 . . 15 Melee 7 | . . . . . . . 6 . . . 1 Projectile 9 | . . . . . . 3 3 3 . . . AOE 110 | . . 87 . . . 9 . . . . 14 Terrain Rammed . | . . . . . . . . . . . . Walls Destroyed . | . . . . . . . . . . . . Machines Disabled . | . . . . . . . . . . . . Actions | -11 -10 -10 -10 -9 -8 -8 -8 -8 -7 -7 -7 --------- Run | Yrd Mat Min Exi Min Mat Gar Mat Gar Fac Gar Fac Total 12422 | 92 346 182 325 235 1978 2503 1020 1633 323 3293 492 Wait 3239 | 3 48 10 . 20 302 444 373 452 123 1235 229 Move 8163 | 65 283 143 324 205 1564 1807 580 989 173 1809 221 Hop . | . . . . . . . . . . . . Pick Up 104 | 8 7 2 1 2 18 19 5 21 . 21 . Fast Attach 45 | 6 . 1 . . 7 11 3 3 . 10 4 Attach 55 | 1 . 3 . . 5 12 7 7 2 11 7 Detach 3 | . . . . . . . 1 2 . . . Swap 105 | 1 4 3 . 1 7 23 7 18 8 30 3 Drop 98 | . 2 3 . 2 26 20 6 16 . 20 3 Fire 231 | 8 1 17 . 5 49 84 21 5 . 19 22 Melee 150 | . 1 . . . . 27 17 43 17 42 3 Ram . | . . . . . . . . . . . . Kick . | . . . . . . . . . . . . Crush . | . . . . . . . . . . . . Escape Stasis 82 | . . . . . . 56 . 25 . 1 . Rewire 2 | . . . . . . . . . . 2 . Trap 145 | . . . . . . . . 52 . 93 . Miscellaneous . | . . . . . . . . . . . . Route ------- -11/Scrapyard -10/Materials (discovered 4 exits: [*Mat x2] / [*Min x2]) -10/Mines -10/Exiles (discovered 2 exits: [*Min x2]) -9/Mines -8/Materials (discovered 4 exits: *Fac x3 / Gar) -8/Garrison (discovered 2 exits: *Mat x2) -8/Materials (discovered 2 exits: *Fac / Gar) -8/Garrison (discovered 3 exits: *Fac x3) -7/Factory -7/Garrison (discovered 3 exits: [*Fac x3]) -7/Factory History --------- Turn | Location | Event 8 | -11/Scrapyard | Discovered new exit (range 15) 112 | -11/Scrapyard | Entered Materials 185 | -10/Materials | Discovered new exit (range 10) 249 | -10/Materials | Discovered new exit (range 12) 315 | -10/Materials | Build established: Mutant 331 | -10/Materials | Discovered new exit (range 8) 603 | -10/Materials | Discovered new exit (range 9) 631 | -10/Materials | Entered Mines 632 | -10/Mines | Assembled infested the area 637 | -10/Mines | Assisted by a Guerilla fighting off Assembled 738 | -10/Mines | Destroyed 12 combat bots 775 | -10/Mines | Joined a pair of Derelicts in attacking an 0b10 outpost 868 | -10/Mines | Deemed a non-threat by the Exiles lab entrance 868 | -10/Mines | Discovered new exit (range 5) 873 | -10/Mines | Entered Exiles 900 | -10/Exiles | Met 8R-AWN 921 | -10/Exiles | Met EX-HEX 960 | -10/Exiles | Met EX-BIN 974 | -10/Exiles | Aligned with FarCom system 975 | -10/Exiles | Given EX-Vault access code 1005 | -10/Exiles | Opened EX-Vault 1010 | -10/Exiles | Found AWS/Gauss 1035 | -10/Exiles | Warned to stay clear of 0b10 Research branches 1069 | -10/Exiles | Met EX-DEC 1110 | -10/Exiles | Discovered new exit (range 14) 1232 | -10/Exiles | Discovered new exit (range 15) 1247 | -10/Exiles | Left Exiles lab with AWS/Gauss 1247 | -10/Exiles | Entered Mines 1483 | -9/Mines | YI-UF0 nonchalantly dropped a Grenade Launcher on the ground 1492 | -9/Mines | A weapon hastily lodged in a ceiling crevice suddenly fell to the ground 1507 | -9/Mines | Discovered new exit (range 12) 1523 | -9/Mines | Entered Materials 1523 | -8/Materials | Evolved 4 slots: Propulsion x1, Utility x2, Weapon x1 1867 | -8/Materials | Build established: Scavenger-Skirmisher 1980 | -8/Materials | Discovered new exit (range 15) 2133 | -8/Materials | Destroyed 8 combat bots 2222 | -8/Materials | Discovered new exit (range 5) 2519 | -8/Materials | Build established: Skirmisher 2800 | -8/Materials | Discovered new exit (range 8) 2847 | -8/Materials | Repaired Hacking Suite? 3846 | -8/Materials | Identified exit to Garrison 3933 | -8/Materials | Build established: Scavenger-Skirmisher 4060 | -8/Materials | Entered Garrison 4282 | -8/Garrison | Triggered checkpoint 4381 | -8/Garrison | Garrison Relay disabled 4554 | -8/Garrison | Triggered checkpoint 4598 | -8/Garrison | Destroyed 7 combat bots 4701 | -8/Garrison | Discovered new exit (range 13) 4798 | -8/Garrison | Triggered checkpoint 4953 | -8/Garrison | System corruption reached 10% 4967 | -8/Garrison | Garrison Relay disabled 4967 | -8/Garrison | Garrison Relay disabled 4969 | -8/Garrison | Lost 3 parts (2n1u) 5020 | -8/Garrison | Garrison Relay disabled 5144 | -8/Garrison | Triggered checkpoint 5534 | -8/Garrison | Triggered checkpoint 5825 | -8/Garrison | Discovered new exit (range 11) 5866 | -8/Garrison | Triggered checkpoint 5936 | -8/Garrison | Installed Relay Interface Framework 5996 | -8/Garrison | Garrison Relay disabled 6113 | -8/Garrison | Garrison Relay disabled 6200 | -8/Garrison | Build established: Bothacker-Mutant 6308 | -8/Garrison | Triggered checkpoint 6552 | -8/Garrison | Triggered checkpoint 6918 | -8/Garrison | Garrison Relay disabled 7058 | -8/Garrison | Triggered checkpoint 7075 | -8/Garrison | Garrison Relay disabled 7352 | -8/Garrison | Entered Materials 7352 | -8/Materials | Accompanied by 2 allies 8215 | -8/Materials | Core integrity fell below 50% 8379 | -8/Materials | Discovered new exit (range 16) 8552 | -8/Materials | First assault squad dispatched 8577 | -8/Materials | Garrison activated, responded to threat 8591 | -8/Materials | Identified exit to Garrison 8591 | -8/Materials | Entered Garrison 8591 | -8/Garrison | Accompanied by 1 ally 8617 | -8/Garrison | Lost 4 allies 8661 | -8/Garrison | Triggered checkpoint 8735 | -8/Garrison | Garrison Relay disabled 8837 | -8/Garrison | Triggered checkpoint 8851 | -8/Garrison | Triggered checkpoint 8943 | -8/Garrison | Triggered checkpoint 8992 | -8/Garrison | Discovered new exit (range 10) 9098 | -8/Garrison | Garrison Relay disabled 9378 | -8/Garrison | Discovered new exit (range 8) 9595 | -8/Garrison | Triggered checkpoint 9707 | -8/Garrison | Discovered new exit (range 10) 9735 | -8/Garrison | Triggered checkpoint 9760 | -8/Garrison | Garrison Relay disabled 9844 | -8/Garrison | Expanded RIF knowledge: Robot Detection 9974 | -8/Garrison | Core integrity fell below 20% 10027 | -8/Garrison | Lost 4 allies 10646 | -8/Garrison | Garrison Relay disabled 10654 | -8/Garrison | Garrison Relay disabled 10664 | -8/Garrison | Garrison Relay disabled 10685 | -8/Garrison | Garrison Relay disabled 10950 | -8/Garrison | Entered Factory 10950 | -7/Factory | Accompanied by 1 ally 10950 | -7/Factory | Evolved 2 slots: Propulsion x1, Utility x1 11354 | -7/Factory | Lost 3 allies 11495 | -7/Factory | Identified exit to Garrison 11511 | -7/Factory | Entered Garrison 11511 | -7/Garrison | Accompanied by 4 allies 11656 | -7/Garrison | Garrison Relay disabled 11738 | -7/Garrison | Garrison Relay disabled 11866 | -7/Garrison | Garrison Relay disabled 11930 | -7/Garrison | Garrison Relay disabled 11952 | -7/Garrison | Garrison Relay disabled 12089 | -7/Garrison | Triggered checkpoint 12545 | -7/Garrison | Triggered checkpoint 12587 | -7/Garrison | Lost 4 allies 13100 | -7/Garrison | Discovered new exit (range 10) 13413 | -7/Garrison | Expanded RIF knowledge: Signal Jamming 13535 | -7/Garrison | Triggered checkpoint 13881 | -7/Garrison | Build established: Bothacker-Tank 14007 | -7/Garrison | Triggered checkpoint 14030 | -7/Garrison | Triggered checkpoint 14323 | -7/Garrison | Build established: Bothacker-Skirmisher 14666 | -7/Garrison | Build established: Bothacker-Mutant 14856 | -7/Garrison | Discovered new exit (range 10) 14987 | -7/Garrison | Triggered checkpoint 15020 | -7/Garrison | Garrison Relay disabled 15556 | -7/Garrison | Lost 4 allies 15566 | -7/Garrison | Discovered new exit (range 14) 15593 | -7/Garrison | Expanded RIF knowledge: Hotswap 15643 | -7/Garrison | Triggered checkpoint 15671 | -7/Garrison | Garrison Relay disabled 15911 | -7/Garrison | Build established: Botlord-Skirmisher 16207 | -7/Garrison | Rescued a captive Derelict 16217 | -7/Garrison | Rescued a captive Derelict 16300 | -7/Garrison | Entered Factory 16300 | -7/Factory | Accompanied by 9 allies 16559 | -7/Factory | Build established: Botlord-Mutant 16700 | -7/Factory | First assault squad dispatched 16849 | -7/Factory | Lost 11 allies 16877 | -7/Factory | Core integrity fell below 50% 16920 | -7/Factory | System corruption reached 10% 16942 | -7/Factory | Lost 13 parts (1p6n3u3w) 16943 | -7/Factory | Core integrity fell below 20% 16956 | -7/Factory | Destroyed by P-60 Hacker with Shock Rifle Last Messages --------------- 16911_ Destroyed VTOL Module. 16911_ S-27 Virus destroyed. 16911_ D-53 Grenadier destroyed. 16911_ Hvy. Machine Gun destroyed. 16911_ Destroyed Hvy. Machine Gun. 16911_ Adv. Treads destroyed. 16911_ Destroyed Adv. Treads. 16911_ Hvy. Machine Gun destroyed. 16913_ Critical hit (Burn: +37). 16918_ Acquired Adv. Treads. 16928_ U-05 Engineer builds a Wall. 16931_ K-01 Serf collects debris. 16932_ U-05 Engineer lays Concrete. 16933_ U-05 Engineer builds a Wall. 16944_ Lrn. Proton Cannon destroyed. 16946_ Adv. Treads destroyed. 16953_ System corrupted: Adv. Treads rejected. 16953_ Emergency Access malfunctions. 16953_ Dropped Lrg. Storage Unit. 16954_ Dropped Falx. Map ----- +----------------------------------------------------+ | ??????????????????????????????????????????????? | | ??????????????????????????????????????????????? | | ??????????????????????????????????????????????? | | ??????????????????????????????????????????????? | | ??????????????????????????????????????????????? | | ??????????????????????????????????????????????? | | ??????????????????????????????????????????????? | | ??????????????????????????????????????????????? | | ??????????????????????????????????????????????? | | ???????????????????????????????? ??????????? | | ??????????????????????????????# ??????????? | | ??????????????????????????????+ #?????????? | | ??????????????????????????????# +?????????? | | ??????????????????????????????# ########### | | ??????????????????????????????# # ! # | | ??????????????????????????????# # ! # | | ??????????????????????????????# % # # | | ??????????????????????????????# # !!!# | | ???????????????????????##?????# # """ !!!# | | ??????????????????????? #?????# # """ !!!# | | ????????????????????###/##+#### # """ # | | ????????????????????# ! # # | | ????????????????????# = # # # | | ????????????????????# # | | ????????????????????# ! # =% | | ????????????????????# @ # % = | | ????????????????????#[=! + =* | | ????????????????????# ! # %= | | ????????????????????# p # # ### | | ????????????????????####;###### # | | ???????????????????????#g ## | | ???????????????????????# g ## | | ???????????????????????#g g ## | | ???????????????????????# g ## | | ??????????############## g ## | | ?????????## # ###### % | | ?????????# """" # ####????# ! | | ??????????# "F*" # i #???????# | | ??????????# =%[ # #???????# "" "" "" | | ??????????# ! = =" #???????# ""T"" "" | | ??????????# = = %% #???????# """ "" | | ??????????# ! " #???????# | | ??????????# " #???????########## | | ??????????# %" #?######?????????? | | ??????????# " #? ??????????? | | ??????????# " # """" ??????????? | | ??????????# " # """" "?????????? | | ??????????#######""""""#% " """" "?????????? | | ???????????????? # # """" "?????????? | | ??????????????? # # """" ??????????? | +----------------------------------------------------+ Best States ------------- Heat Dissipation 34 Energy Generation 19 Energy Capacity 315 Matter Stores 300 Matter Capacity 300 Sight Range 16 Terrain Scan Range 16 Terrain Scan Density 10 Armor Coverage 750 Power Shielding 33 Propulsion Shielding 66 Weapon Shielding 33 Evasion (%) 55 Targeting Accuracy 8 Recoil Reduction 4 Relay Coupler Types 4 Relay Coupler Value 76 Item Schematics ----------------- None Robot Schematics ------------------ None Fabricated ------------ Nothing Alien Tech Used ----------------- None Achievements -------------- Exterminator Hehehe No Signal Challenges ------------ None Game ------ Seed GyrokineticRestorationKit Manual? 0 Play Time 02:45:15 Cumulative 66.4 hours Start 2024.11.28 @ 22:08:33 End 2024.11.29 @ 02:12:01 Sessions 1 Manual Loads 0 Difficulty Rogue Special Mode None Game No. 69 Rogue 69 Adventurer 0 Explorer 0 Win Type - Total 0 Types 0/0/0/0/0/0/0/0/0 Lore% 10 Gallery% 33 Achievement% 32 Wizard Run 0 Options --------- Layout 2 ASCII 0 Keyboard 0 Movement Mouse Keybinds 0 Fullscreen 2 Font 16/SmallcapsGlow Map View 55x47 Zoom Use 8% Tactical HUD 1 Map Filters NONE Filters NONE Steam 1 RUN: 90e4c124-957d-4205-932c-89a064d6c3ca